bitfinex/quotes_ETHUSD_20251025
["timestamp","ask_amount","ask_price","bid_price","bid_amount"]
[1761366315385,12.48182387,3935.1,3935.0,1e-08]
[1761366315886,12.58362459,3935.1,3935.0,1e-08]
[1761366318258,11.89745841,3935.1,3935.0,1e-08]
[1761366318473,12.58403534,3935.1,3935.0,1e-08]
[1761366324065,12.68303534,3935.1,3935.0,1e-08]
[1761366324270,13.18991534,3935.1,3935.0,1e-08]
[1761366326089,13.09091534,3935.1,3935.0,1e-08]
[1761366326291,13.18991534,3935.1,3935.0,1e-08]
[1761366327692,16.22747648,3935.1,3935.0,1e-08]
[1761366328099,17.58785477,3935.1,3935.0,1e-08]
[1761366328309,16.22747648,3935.1,3935.0,1e-08]
[1761366328707,3.04836982,3934.7,3934.6,0.002]
[1761366328894,9.98550789,3934.7,3934.6,0.002]
[1761366329212,10.21170789,3934.7,3934.6,0.002]
[1761366329406,10.99948118,3934.7,3934.6,0.002]
[1761366330206,12.45568118,3934.7,3934.6,0.002]
[1761366330375,15.36807186,3934.7,3934.6,0.002]
[1761366334272,14.45317451,3934.7,3934.6,0.002]
[1761366334677,15.36807186,3934.7,3934.6,0.002]
[1761366335394,14.45317451,3934.7,3934.6,0.002]
[1761366335979,14.35417451,3934.7,3934.6,0.002]
[1761366338386,11.31466547,3934.7,3934.6,0.002]
[1761366338591,2.77050946,3934.7,3934.6,0.4327]
[1761366338791,5.98350946,3934.7,3934.6,0.4327]
[1761366339120,7.53870946,3934.7,3934.6,0.4327]
[1761366339990,4.32570946,3934.7,3934.6,0.4327]
[1761366340191,7.53870946,3934.7,3934.6,0.4327]
[1761366341103,4.32570946,3934.7,3934.6,0.4327]
[1761366341282,11.26284753,3934.7,3934.6,0.4327]
[1761366347241,11.13564753,3934.7,3934.6,0.4327]
[1761366350545,7.92264753,3934.7,3934.6,0.4327]
[1761366350839,11.13464753,3934.7,3934.6,0.4327]
[1761366351027,7.92264753,3934.7,3934.6,0.4327]
[1761366351232,11.13464753,3934.7,3934.6,0.4327]
[1761366352747,7.41050946,3934.7,3934.6,0.4327]
[1761366352961,0.001,3934.8,3934.6,0.4327]
[1761366353111,2.54243826,3934.8,3934.6,0.4327]
[1761366353314,2.54243826,3934.8,3934.6,0.8654]
[1761366353848,2.54243826,3934.8,3934.7,0.4307]
[1761366354013,2.54243826,3934.8,3934.7,1.19409277]
[1761366354665,0.001,3934.8,3934.7,1.19409277]
[1761366355817,0.001,3934.8,3934.7,1.56786818]
[1761366356319,0.001,3934.8,3934.7,1.19409277]
[1761366357231,0.1282,3934.8,3934.7,1.19409277]
[1761366363966,3.3392,3934.8,3934.7,1.19409277]
[1761366365937,0.1282,3934.8,3934.7,1.19409277]
[1761366366138,3.3392,3934.8,3934.7,1.19409277]
[1761366368166,3.3392,3934.8,3934.7,0.76339277]
[1761366368476,0.1282,3934.8,3934.7,1.21479277]
[1761366368676,3.3382,3934.8,3934.7,1.21479277]
[1761366375488,3.3382,3934.8,3934.7,0.4514]
[1761366380392,3.21,3934.8,3934.7,0.4514]
[1761366380893,0.001,3934.8,3934.7,0.82723899]
[1761366381096,3.21,3934.8,3934.7,0.82723899]
[1761366382364,3.21,3934.8,3934.7,1.21478111]
[1761366383368,0.001,3934.8,3934.7,1.21478111]
[1761366383594,3.21,3934.8,3934.7,1.21478111]
[1761366384568,3.21,3934.8,3934.7,0.76338111]
[1761366385295,3.21,3934.8,3934.7,1.21478111]
[1761366392312,3.21,3934.8,3934.7,0.4514]
[1761366395230,0.001,3934.8,3934.7,3.36872744]
[1761366395515,0.001,3934.8,3934.7,4.25922309]
[1761366410818,0.001,3934.8,3934.7,4.28463798]
[1761366411184,0.001,3934.8,3934.7,4.25922309]
[1761366414820,0.001,3934.8,3934.7,7.98081856]
[1761366433634,0.001,3934.8,3934.7,3.80782309]
[1761366433829,0.001,3934.8,3934.7,0.89049565]
[1761366434136,0.001,3934.8,3934.7,3.43198547]
[1761366435737,0.001,3934.8,3934.7,0.89049565]
[1761366435935,0.001,3934.8,3934.7,0.76329565]
[1761366436234,0.1002,3934.8,3934.6,0.002]
[1761366436643,0.1002,3934.8,3934.6,0.76529565]
[1761366437137,0.37717419,3934.8,3934.6,0.76529565]
[1761366437511,0.0992,3934.7,3934.6,0.76529565]
[1761366439032,3.3042,3934.7,3934.6,0.76529565]
[1761366441645,3.205,3934.7,3934.6,0.76529565]
[1761366441812,5.84568982,3934.7,3934.6,0.002]
[1761366442013,10.53329063,3934.7,3934.6,0.002]
[1761366453671,12.46817063,3934.7,3934.6,0.002]
[1761366454040,12.57597006,3934.7,3934.6,0.002]
[1761366454679,15.07597006,3934.7,3934.6,0.002]
[1761366456410,15.75972518,3934.7,3934.6,0.002]
[1761366461307,12.03812971,3934.7,3934.6,0.002]
[1761366463635,8.27657459,3934.7,3934.6,0.002]
[1761366463821,11.48157459,3934.7,3934.6,0.002]
[1761366471429,12.16532971,3934.7,3934.6,0.002]
[1761366474701,16.63600942,3934.7,3934.6,0.002]
[1761366475836,16.63699364,3934.7,3934.6,0.002]
[1761366476537,15.9522543,3934.7,3934.6,0.002]
[1761366477435,15.8530543,3934.7,3934.6,0.002]
[1761366477740,15.9522543,3934.7,3934.6,0.002]
[1761366479251,8.35557837,3934.7,3934.6,0.002]
[1761366479543,10.87549459,3934.7,3934.6,0.002]
[1761366479749,10.87549459,3934.7,3934.6,0.4416]
[1761366480044,10.87549459,3934.7,3934.6,0.002]
[1761366480547,11.56057837,3934.7,3934.6,0.002]
[1761366481407,11.55957837,3934.7,3934.6,0.002]
[1761366483342,10.87449459,3934.7,3934.6,0.002]
[1761366483521,10.97369459,3934.7,3934.6,0.002]
[1761366484356,10.87449459,3934.7,3934.6,0.002]
[1761366488762,8.17737459,3934.7,3934.6,0.002]
[1761366488959,11.48057459,3934.7,3934.6,0.002]
[1761366493471,11.38137459,3934.7,3934.6,0.002]
[1761366496002,11.27357516,3934.7,3934.6,0.002]
[1761366503306,11.27257516,3934.7,3934.6,0.002]
[1761366506572,11.27257516,3934.7,3934.6,0.4578]
[1761366507008,8.06957516,3934.7,3934.6,0.4578]
[1761366507187,11.27257516,3934.7,3934.6,0.4578]
[1761366509933,11.27257516,3934.7,3934.6,0.002]
[1761366510211,15.74325487,3934.7,3934.6,0.002]
[1761366512112,12.54025487,3934.7,3934.6,0.002]
[1761366512414,15.74325487,3934.7,3934.6,0.002]
[1761366521821,7.56269516,3934.7,3934.6,0.002]
[1761366522028,9.79868982,3934.7,3934.6,0.4537]
[1761366522848,9.79868982,3934.7,3934.6,0.002]
[1761366523253,10.48528694,3934.7,3934.6,0.002]
[1761366525333,12.32661437,3934.7,3934.6,0.002]
[1761366526866,12.32661437,3934.7,3934.6,0.4537]
[1761366529768,12.32661437,3934.7,3934.6,0.002]
[1761366532070,12.45381437,3934.7,3934.6,0.002]
[1761366540670,11.76721725,3934.7,3934.6,0.002]
[1761366541484,13.2881946,3934.7,3934.6,0.002]
[1761366542050,12.37329725,3934.7,3934.6,0.002]
[1761366542454,13.83549803,3934.7,3934.6,0.002]
[1761366543406,5.08336722,3934.4,3932.7,0.2193]
[1761366543590,6.26751587,3932.8,3932.7,0.2193]
[1761366543811,5.74371765,3932.8,3932.7,0.2193]
[1761366544166,5.74371765,3932.8,3932.7,0.6588]
[1761366544467,7.29891765,3932.8,3932.7,0.6588]
[1761366545970,7.29891765,3932.8,3932.5,0.002]
[1761366545971,4.09798231,3932.7,3932.5,0.002]
[1761366546878,4.09798231,3932.7,3932.6,0.4415]
[1761366552695,7.29998231,3932.7,3932.6,0.4415]
[1761366553412,7.42718231,3932.7,3932.6,0.4415]
[1761366555495,4.22518231,3932.7,3932.6,0.4415]
[1761366555697,7.42718231,3932.7,3932.6,0.4415]
[1761366561943,7.42718231,3932.7,3932.6,0.002]
[1761366565027,8.85665045,3932.7,3932.6,0.002]
[1761366586201,11.35665045,3932.7,3932.6,0.002]
[1761366594750,11.35665045,3932.7,3932.6,0.4445]
[1761366598857,8.85665045,3932.7,3932.6,0.4445]
[1761366601126,8.85665045,3932.7,3932.6,0.4458]
[1761366601929,8.85665045,3932.7,3932.6,0.002]
[1761366603977,8.85665045,3932.7,3932.6,0.4458]
[1761366604159,11.35665045,3932.7,3932.6,0.4458]
[1761366604963,8.85665045,3932.7,3932.6,0.4458]
[1761366605642,8.85665045,3932.7,3932.6,0.002]
[1761366610669,8.85665045,3932.7,3932.6,0.4596]
[1761366612563,8.85665045,3932.7,3932.6,0.002]
[1761366613251,8.95850691,3932.7,3932.6,0.002]
[1761366614383,11.45850691,3932.7,3932.6,0.002]
[1761366615949,10.02903877,3932.7,3932.6,0.4596]
[1761366616354,10.02903877,3932.7,3932.6,0.002]
[1761366621795,10.02903877,3932.7,3932.6,0.4596]
[1761366627247,10.02903877,3932.7,3932.6,0.002]
[1761366627517,11.3549159,3932.7,3932.6,0.002]
[1761366630382,11.3549159,3932.7,3932.6,0.4596]
[1761366634094,8.1529159,3932.7,3932.6,0.4596]
[1761366634295,2.6272,3932.7,3932.6,0.4596]
[1761366634515,5.7,3932.7,3932.6,0.9192]
[1761366634897,3.2,3932.7,3932.6,0.9192]
[1761366635703,5.74278231,3932.7,3932.6,0.9192]
[1761366635899,5.74278231,3932.7,3932.6,0.4616]
[1761366636527,5.74278231,3932.7,3932.6,0.4596]
[1761366640697,3.2,3932.7,3932.6,0.4596]
[1761366640896,3.199,3932.7,3932.6,0.4596]
[1761366641396,5.74178231,3932.7,3932.6,0.4596]
[1761366645001,2.54278231,3932.7,3932.6,0.4596]
[1761366645219,5.74178231,3932.7,3932.6,0.4596]
[1761366649872,5.74178231,3932.7,3932.6,0.4397]
[1761366650077,3.199,3932.7,3932.6,0.4397]
[1761366650958,5.74178231,3932.7,3932.6,0.4397]
[1761366652669,2.54278231,3932.7,3932.6,0.4397]
[1761366652835,5.74178231,3932.7,3932.6,0.4397]
[1761366657281,5.74178231,3932.7,3932.6,0.002]
[1761366658584,5.74178231,3932.7,3932.6,0.4554]
[1761366660546,0.1272,3932.8,3932.6,0.4554]
[1761366660882,3.199,3932.7,3932.6,0.4554]
[1761366661183,3.199,3932.7,3932.6,0.917]
[1761366662182,5.74178231,3932.7,3932.6,0.917]
[1761366662479,3.199,3932.7,3932.6,0.917]
[1761366664005,5.74178231,3932.7,3932.6,0.917]
[1761366664589,3.199,3932.7,3932.6,0.917]
[1761366666469,3.199,3932.7,3932.6,0.4554]
[1761366667065,0.1272,3932.8,3932.6,0.4554]
[1761366667297,3.198,3932.7,3932.6,0.4554]
[1761366667679,0.1272,3932.8,3932.6,0.4554]
[1761366667874,3.198,3932.7,3932.6,0.4554]
[1761366669999,0.1272,3932.8,3932.6,0.4554]
[1761366670294,3.198,3932.7,3932.6,0.4554]
[1761366671894,0.1272,3932.8,3932.6,0.4554]
[1761366672096,3.198,3932.7,3932.6,0.4554]
[1761366676076,3.198,3932.7,3932.6,0.002]
[1761366676277,5.74078231,3932.7,3932.6,0.002]
[1761366676574,3.198,3932.7,3932.6,0.002]
[1761366676776,3.198,3932.7,3932.6,0.4602]
[1761366682420,5.74078231,3932.7,3932.6,0.002]
[1761366685720,6.96451231,3932.7,3932.6,0.002]
[1761366689397,7.06351231,3932.7,3932.6,0.002]
[1761366692832,6.96451231,3932.7,3932.6,0.002]
[1761366693529,5.74078231,3932.7,3932.6,0.002]
[1761366694633,5.83978231,3932.7,3932.6,0.002]
[1761366695216,5.74078231,3932.7,3932.6,0.002]
[1761366695823,5.83978231,3932.7,3932.6,0.002]
[1761366696028,7.39498231,3932.7,3932.6,0.002]
[1761366696331,8.88627153,3932.7,3932.6,0.002]
[1761366698423,11.38627153,3932.7,3932.6,0.002]
[1761366700639,11.28727153,3932.7,3932.6,0.002]
[1761366714968,11.38627153,3932.7,3932.6,0.002]
[1761366718074,11.28727153,3932.7,3931.1,3.45970692]
[1761366718255,11.28727153,3932.7,3929.2,9.53589885]
[1761366718256,2.54498256,3929.3,3929.2,3.16589885]
[1761366718577,2.54498256,3929.3,3929.1,0.1898]
[1761366718578,0.25449826,3929.3,3929.1,0.1898]
[1761366718744,3.53149826,3929.3,3929.2,0.54578611]
[1761366718945,3.53149826,3929.3,3929.2,2.17554715]
[1761366718946,0.68690482,3929.3,3929.2,2.17554715]
[1761366719176,0.68690482,3929.3,3929.1,0.1898]
[1761366719177,2.54493057,3929.4,3929.1,0.1898]
[1761366719484,4.29630069,3929.3,3929.1,0.1898]
[1761366719686,3.278,3929.2,3929.1,0.1898]
[1761366719872,3.278,3929.2,3928.2,0.1898]
[1761366720073,2.54563042,3928.3,3928.2,0.1898]
[1761366720274,3.279,3928.4,3928.2,0.1898]
[1761366720478,2.54563042,3928.3,3928.2,0.1898]
[1761366720675,3.279,3928.4,3928.2,0.1898]
[1761366721079,2.54563042,3928.3,3928.2,0.1898]
[1761366721689,3.22846332,3928.3,3928.2,0.1898]
[1761366721855,3.41826332,3928.3,3928.2,0.1898]
[1761366722386,2.73543042,3928.3,3928.2,0.1898]
[1761366722985,2.54576003,3928.1,3928.0,0.002]
[1761366723184,5.82376003,3928.1,3928.0,0.002]
[1761366725688,10.29813662,3928.1,3928.0,0.002]
[1761366725965,10.65993662,3928.1,3928.0,0.002]
[1761366726174,7.74076003,3928.1,3928.0,0.002]
[1761366726377,8.65347297,3928.1,3928.0,0.002]
[1761366726694,7.74076003,3928.1,3928.0,0.002]
[1761366727264,8.64473737,3928.1,3928.0,0.002]
[1761366727475,7.74076003,3928.1,3928.0,0.002]
[1761366728083,7.86796003,3928.1,3928.0,0.002]
[1761366729671,7.96993932,3928.1,3928.0,0.002]
[1761366730898,8.51096463,3928.1,3928.0,0.002]
[1761366732503,9.41207048,3928.1,3928.0,0.002]
[1761366734276,8.51096463,3928.1,3928.0,0.002]
[1761366736898,8.40898534,3928.1,3928.0,0.002]
[1761366741184,9.76103406,3928.1,3928.0,0.002]
[1761366742300,9.52362521,3928.1,3928.0,0.002]
[1761366742808,10.87914661,3928.1,3928.0,0.002]
[1761366743212,9.52362521,3928.1,3928.0,0.002]
[1761366743585,2.54627861,3927.3,3927.2,0.002]
[1761366743807,6.48150392,3927.3,3927.2,0.002]
[1761366744181,7.83818673,3927.3,3927.2,0.002]
[1761366744389,6.48150392,3927.3,3927.2,0.002]
[1761366752114,14.29238074,3927.3,3927.2,0.002]
[1761366752303,1.48914554,3927.3,3927.2,0.002]
[1761366752627,4.45965666,3927.3,3927.2,0.434]
[1761366753232,4.45965666,3927.3,3927.2,0.002]
[1761366753411,11.90376756,3927.3,3927.2,0.002]
[1761366753616,11.90376756,3927.3,3926.5,0.12]
[1761366753617,2.54673254,3926.6,3926.5,0.12]
[1761366753924,6.36175785,3926.6,3926.5,0.12]
[1761366754309,9.88537083,3926.6,3926.5,0.12]
[1761366755214,9.88537083,3926.6,3924.2,2.54826636]
[1761366755215,2.06208,3926.5,3924.3,0.1898]
[1761366755526,2.06208,3926.5,3924.4,2.57363642]
[1761366755527,2.05488163,3925.8,3924.4,2.57363642]
[1761366755707,0.68496054,3926.0,3925.7,0.1898]
[1761366755897,0.5480838,3925.9,3925.7,0.1898]
[1761366756091,0.91328073,3926.3,3925.7,0.1898]
[1761366756092,0.5480838,3925.8,3925.7,0.1898]
[1761366756724,0.5480838,3925.8,3925.7,0.6218]
[1761366757331,0.5480838,3926.0,3925.7,0.6218]
[1761366757516,0.5480838,3925.9,3925.8,0.432]
[1761366758437,0.5480838,3926.0,3925.8,0.432]
[1761366758623,0.5480838,3925.9,3925.8,0.432]
[1761366758827,0.5480838,3926.0,3925.8,0.432]
[1761366759027,0.5480838,3925.9,3925.8,0.432]
[1761366759200,0.5480838,3926.1,3925.8,0.432]
[1761366759530,0.5480838,3926.2,3925.8,0.432]
[1761366759838,0.5480838,3926.1,3925.8,0.432]
[1761366760036,3.09509541,3926.2,3925.8,0.432]
[1761366760205,0.5480838,3926.1,3925.8,0.432]
[1761366760406,0.5480838,3926.1,3925.8,0.4603]
[1761366761505,3.09514245,3926.1,3925.8,0.4603]
[1761366761706,2.54700241,3926.2,3925.8,0.4603]
[1761366761907,0.54732974,3926.1,3925.8,0.4603]
[1761366762108,0.1272,3925.9,3925.8,0.4603]
[1761366776337,0.1272,3925.9,3925.7,0.1898]
[1761366777614,0.1272,3925.9,3925.6,0.002]
[1761366779264,2.5473164,3925.7,3925.6,0.002]
[1761366779472,2.6745164,3925.7,3925.6,0.002]
[1761366779643,0.1272,3925.7,3925.6,0.002]
[1761366780363,2.6745164,3925.7,3925.6,0.002]
[1761366781570,0.1272,3925.7,3925.6,0.002]
[1761366785164,0.60671792,3934.2,3925.6,0.435]
[1761366785165,2.76730372,3926.5,3925.6,0.435]
[1761366785371,0.1272,3925.8,3925.6,0.435]
[1761366786773,0.001,3926.5,3925.7,4.56495621]
[1761366787069,0.001,3926.5,3926.4,2.73666226]
[1761366787365,0.001,3926.5,3926.4,0.1898]
[1761366787938,0.001,3926.5,3926.4,0.6289]
[1761366790159,0.001,3926.5,3925.9,0.1898]
[1761366790160,2.54784252,3926.5,3925.9,0.1898]
[1761366790343,0.1272,3926.2,3925.9,0.1898]
[1761366790545,0.1272,3926.2,3925.9,0.6289]
[1761366791662,0.1272,3926.2,3926.0,0.4391]
[1761366792550,0.1272,3926.2,3925.9,0.1898]
[1761366792738,0.1272,3926.2,3925.9,0.6289]
[1761366796085,0.1272,3926.2,3926.0,0.4391]
[1761366797184,0.1272,3926.2,3925.9,0.1898]
[1761366797378,0.1272,3926.2,3925.9,0.6289]
[1761366799259,0.1272,3926.2,3925.8,2.54724652]
[1761366799460,0.5854,3926.2,3925.8,2.54724652]
[1761366799755,0.1272,3926.2,3925.7,2.54730485]
[1761366799962,0.1272,3926.2,3925.8,0.4391]
[1761366800373,0.1272,3926.2,3925.7,5.80330485]
[1761366800578,0.1272,3926.2,3925.8,2.54725114]
[1761366800785,0.1272,3926.2,3925.8,2.98635114]
[1761366804163,0.4582,3926.1,3925.7,3.256]
[1761366804364,0.4582,3926.1,3925.7,5.80331473]
[1761366804890,0.1272,3926.2,3925.7,5.80331473]
[1761366805084,0.5854,3926.2,3925.7,5.80331473]
[1761366805798,0.5854,3926.2,3925.8,2.54725019]
[1761366806197,0.1272,3926.2,3925.6,0.1292]
[1761366806384,0.1272,3926.0,3925.7,3.253]
[1761366808273,0.1272,3926.0,3925.6,3.253]
[1761366809101,0.1272,3926.0,3925.6,5.80037786]
[1761366809903,0.1272,3926.0,3925.6,3.253]
[1761366810597,0.1272,3926.0,3925.6,5.80037255]
[1761366811903,0.1272,3926.0,3925.6,3.253]
[1761366812101,0.5854,3926.0,3925.6,3.253]
[1761366812283,0.5854,3926.0,3925.6,5.80035688]
[1761366812485,0.1272,3926.0,3925.6,5.80035688]
[1761366814715,0.1272,3926.0,3925.7,2.5473154]
[1761366814885,0.1272,3926.0,3925.7,2.98635701]
[1761366815090,0.1272,3926.0,3925.8,0.4391]
[1761366815490,0.1272,3926.0,3925.6,0.002]
[1761366815706,0.1272,3926.0,3925.6,5.79736703]
[1761366816013,0.1272,3926.0,3925.6,6.23646703]
[1761366816219,0.1272,3926.0,3925.6,3.25]
[1761366816885,0.1272,3926.0,3925.6,0.002]
[1761366817079,0.4582,3925.9,3925.6,0.002]
[1761366817299,0.1272,3926.0,3925.6,0.002]
[1761366817498,2.54700534,3926.2,3925.6,0.002]
[1761366817499,0.4582,3925.9,3925.6,0.002]
[1761366819412,3.00539804,3925.9,3925.6,0.002]
[1761366819581,2.54719804,3925.9,3925.6,0.002]
[1761366819781,0.4534,3925.8,3925.6,0.002]
[1761366827383,0.1272,3925.7,3925.6,0.002]
[1761366827588,0.1272,3925.7,3925.6,2.54933463]
[1761366827790,0.1272,3925.7,3925.6,0.002]
[1761366828203,0.1272,3925.7,3925.6,0.4353]
[1761366829718,0.1272,3925.7,3925.6,2.98268129]
[1761366830597,3.243,3926.0,3925.6,2.98268129]
[1761366830598,3.243,3926.0,3925.7,2.54727833]
[1761366830907,3.3702,3926.0,3925.7,2.98057833]
[1761366831107,3.3702,3926.0,3925.8,0.4333]
[1761366831931,0.59171275,3926.0,3925.6,0.002]
[1761366832118,0.4534,3925.9,3925.6,0.002]
[1761366832319,2.54701492,3926.2,3925.6,0.002]
[1761366832524,2.54701492,3926.2,3925.6,0.4353]
[1761366836306,2.54707227,3926.1,3925.6,0.002]
[1761366836518,3.00047227,3926.1,3925.6,0.002]
[1761366837039,3.00052985,3926.0,3925.6,0.002]
[1761366837215,3.241,3925.9,3925.6,0.002]
[1761366837431,2.5473164,3925.7,3925.6,0.002]
[1761366837725,3.0007164,3925.7,3925.6,0.002]
[1761366838365,4.1025164,3925.7,3925.6,0.002]
[1761366838661,6.42517032,3925.7,3925.6,0.002]
[1761366840226,8.92517032,3925.7,3925.6,0.002]
[1761366841348,9.61093878,3925.7,3925.6,0.002]
[1761366842049,9.73813878,3925.7,3925.6,0.002]
[1761366842342,9.05237032,3925.7,3925.6,0.002]
[1761366842718,12.34037032,3925.7,3925.6,0.002]
[1761366843636,11.83349032,3925.7,3925.6,0.002]
[1761366850349,12.34037032,3925.7,3925.6,0.002]
[1761366851355,12.21317032,3925.7,3925.6,0.002]
[1761366852356,12.20617032,3925.7,3925.6,0.002]
[1761366857740,12.30822558,3925.7,3925.6,0.002]
[1761366861468,12.43542558,3925.7,3925.6,0.002]
[1761366864165,13.12119404,3925.7,3925.6,0.002]
[1761366864769,5.27657166,3925.7,3925.6,0.002]
[1761366864969,8.3193164,3925.7,3925.6,0.002]
[1761366865168,8.3193164,3925.7,3925.6,0.4437]
[1761366866160,8.3193164,3925.7,3925.6,0.002]
[1761366869456,5.769,3925.7,3925.6,0.4437]
[1761366870393,8.3163164,3925.7,3925.6,0.4437]
[1761366872171,5.8163164,3925.7,3925.6,0.4437]
[1761366872375,5.8163164,3925.7,3925.6,0.002]
[1761366874398,5.8163164,3925.7,3925.6,0.4437]
[1761366875100,5.9435164,3925.7,3925.6,0.4437]
[1761366879007,11.15606221,3925.7,3925.6,0.002]
[1761366879173,6.36538877,3925.7,3925.6,0.002]
[1761366879374,5.8133164,3925.7,3925.6,0.002]
[1761366879578,5.8133164,3925.7,3925.6,0.4683]
[1761366880081,5.8133164,3925.7,3925.6,0.002]
[1761366880698,5.8133164,3925.7,3925.6,0.4683]
[1761366881718,0.68576846,3926.4,3925.6,0.4683]
[1761366881872,0.001,3926.9,3925.7,2.5472526]
[1761366881873,1.15506846,3926.9,3925.7,2.5472526]
[1761366882073,3.266,3926.4,3926.3,0.1898]
[1761366882409,3.266,3926.4,3926.0,0.6561]
[1761366882813,3.266,3926.4,3926.1,0.4663]
[1761366883304,5.81290412,3926.4,3926.1,0.4663]
[1761366884073,2.54690412,3926.4,3926.1,0.4663]
[1761366884278,0.001,3926.5,3926.1,0.4663]
[1761366884279,3.265,3926.3,3926.1,0.4663]
[1761366884683,3.265,3926.3,3926.0,0.1898]
[1761366884989,3.265,3926.3,3926.1,0.4663]
[1761366889001,0.1272,3926.2,3926.1,0.4663]
[1761366896317,0.001,3926.5,3926.1,3.01335687]
[1761366896510,0.1272,3926.4,3926.1,3.01335687]
[1761366896711,0.1272,3926.4,3926.2,0.4663]
[1761366896911,0.1272,3926.4,3926.2,1.11783962]
[1761366897326,0.1272,3926.4,3926.3,0.4663]
[1761366898592,0.1272,3926.4,3926.2,3.19848397]
[1761366898803,0.1272,3926.4,3926.3,0.4438]
[1761366900220,0.1272,3926.4,3926.3,2.99072713]
[1761366900416,0.1272,3926.4,3926.3,1.08171882]
[1761366900626,0.1272,3926.4,3926.3,2.99072713]
[1761366900833,0.1272,3926.4,3926.3,0.4438]
[1761366902146,0.1272,3926.4,3926.1,0.4438]
[1761366902343,0.1272,3926.4,3926.0,3.5019191]
[1761366902646,0.1272,3926.4,3926.1,2.54705361]
[1761366902945,0.1272,3926.4,3926.1,1.38693437]
[1761366903188,0.1272,3926.4,3926.2,0.4438]
[1761366904469,0.1272,3926.4,3926.1,3.49018624]
[1761366904653,0.1272,3926.4,3926.2,0.4438]
[1761366910212,0.1272,3926.4,3926.1,0.94313437]
[1761366910414,0.1272,3926.4,3926.1,1.37123437]
[1761366910615,0.1272,3926.4,3926.1,3.91828431]
[1761366910827,0.1272,3926.4,3926.0,0.1898]
[1761366911028,0.5678,3926.4,3925.9,5.80213807]
[1761366911755,0.001,3926.5,3925.7,6.41417537]
[1761366911756,0.4406,3926.3,3925.7,6.41417537]
[1761366911949,0.1272,3926.2,3925.7,6.41417537]
[1761366912138,0.1272,3926.2,3925.8,1.06460111]
[1761366912339,0.1272,3926.2,3925.8,4.03994368]
[1761366913230,0.1272,3926.2,3925.8,1.49270111]
[1761366913444,0.1272,3926.2,3925.8,0.4281]
[1761366913650,0.1272,3926.2,3925.7,5.79630021]
[1761366913841,0.4406,3926.1,3925.7,5.79630021]
[1761366914361,0.4406,3926.1,3925.7,3.249]
[1761366915149,0.5678,3926.2,3925.6,5.79635925]
[1761366915355,0.5678,3926.2,3925.7,2.54730951]
[1761366915557,0.5678,3926.2,3925.6,6.22446467]
[1761366916767,0.5678,3926.2,3925.7,2.54731224]
[1761366917772,0.5678,3926.2,3925.7,2.97541224]
[1761366917935,0.5678,3926.2,3925.6,5.79636749]
[1761366919274,0.5678,3926.2,3925.7,2.54730907]
[1761366919978,0.5678,3926.2,3925.6,0.002]
[1761366919979,2.5473164,3925.7,3925.6,0.002]
[1761366920479,2.9879164,3925.7,3925.6,0.002]
[1761366924392,6.79283954,3925.7,3925.6,0.002]
[1761366924539,3.08996255,3925.7,3925.6,0.002]
[1761366924887,7.50099641,3925.7,3925.6,0.002]
[1761366927659,13.30171955,3925.7,3925.6,0.002]
[1761366928093,13.40378106,3925.7,3925.6,0.002]
[1761366930199,13.53098106,3925.7,3925.6,0.002]
[1761366931865,13.76507212,3925.7,3925.6,0.002]
[1761366932204,13.40478106,3925.7,3925.6,0.002]
[1761366935101,15.90478106,3925.7,3925.6,0.002]
[1761366936523,12.65378106,3925.7,3925.6,0.002]
[1761366936725,8.91513792,3925.7,3925.6,0.002]
[1761366937029,15.90278106,3925.7,3925.6,0.002]
[1761366937691,12.65378106,3925.7,3925.6,0.002]
[1761366937897,15.90278106,3925.7,3925.6,0.002]
[1761366939188,14.95530106,3925.7,3925.6,0.002]
[1761366939392,11.21665792,3925.7,3925.6,0.002]
[1761366939732,9.95457791,3925.7,3925.6,0.002]
[1761366940118,10.40217791,3925.7,3925.6,0.002]
[1761366941755,10.08177791,3925.7,3925.6,0.002]
[1761366942974,10.52937791,3925.7,3925.6,0.002]
[1761366945055,6.7307164,3925.7,3925.6,0.002]
[1761366945260,9.9777164,3925.7,3925.6,0.002]
[1761366947566,7.4777164,3925.7,3925.6,0.002]
[1761366950556,7.4747164,3925.7,3925.6,0.002]
[1761366951657,2.6755164,3925.7,3925.6,0.4624]
[1761366951858,5.9185164,3925.7,3925.6,0.4624]
[1761366952271,5.9185164,3925.7,3925.6,0.002]
[1761366961767,6.3661164,3925.7,3925.6,0.002]
[1761366962169,7.25744819,3925.7,3925.6,0.002]
[1761366964636,6.3661164,3925.7,3925.6,0.002]
[1761366966732,5.9185164,3925.7,3925.6,0.002]
[1761366967702,5.9125164,3925.7,3925.6,0.002]
[1761366968801,5.9115164,3925.7,3925.6,0.002]
[1761366969209,2.6755164,3925.7,3925.6,0.002]
[1761366969415,5.9115164,3925.7,3925.6,0.4768]
[1761366969716,5.9115164,3925.7,3925.6,0.002]
[1761366971434,3.3642,3925.7,3925.6,0.4768]
[1761366973734,0.1282,3925.7,3925.6,0.002]
[1761366973936,0.001,3925.7,3925.6,0.4768]
[1761366974130,0.001,3925.7,3925.6,0.77942415]
[1761366974936,0.001,3925.7,3925.6,3.32680544]
[1761366975122,0.001,3925.7,3925.6,0.77942415]
[1761366975524,0.001,3925.7,3925.6,0.4768]
[1761366975840,0.001,3925.7,3925.6,0.002]
[1761366979564,2.5483164,3925.7,3925.6,0.002]
[1761366980764,0.001,3925.7,3925.6,0.002]
[1761366983952,0.1282,3925.7,3925.6,0.4768]